bitfinex/quotes_BTCUSD_20250522
["timestamp","ask_amount","ask_price","bid_price","bid_amount"]
[1747929010092,0.01398093,111340.0,111330.0,4.48296399]
[1747929010336,0.02096194,111340.0,111330.0,4.48296399]
[1747929010541,0.003,111340.0,111330.0,4.48296399]
[1747929010765,0.02894125,111350.0,111340.0,0.56897347]
[1747929010969,0.02894125,111350.0,111340.0,0.94117347]
[1747929011170,0.02894052,111350.0,111340.0,0.94117347]
[1747929011373,0.002,111350.0,111340.0,0.94117347]
[1747929011588,0.01098004,111350.0,111340.0,5.46353747]
[1747929011777,0.2537349,111370.0,111360.0,0.57083638]
[1747929011778,0.08313184,111370.0,111360.0,0.57083638]
[1747929011984,0.09211043,111370.0,111360.0,1.22775638]
[1747929012225,0.28964974,111370.0,111360.0,1.21877706]
[1747929012344,0.27169264,111370.0,111360.0,1.2008177]
[1747929012578,0.26271389,111370.0,111360.0,1.02122]
[1747929012785,0.35225945,111370.0,111360.0,0.72768]
[1747929012984,0.35235016,111370.0,111360.0,1.36912]
[1747929013655,0.35435016,111370.0,111360.0,1.36912]
[1747929014737,0.28519683,111370.0,111360.0,1.36912]
[1747929015165,0.28219683,111370.0,111360.0,1.38166178]
[1747929015621,0.28219683,111370.0,111360.0,1.58642973]
[1747929015622,0.29117558,111370.0,111360.0,1.58642973]
[1747929015925,0.29217558,111370.0,111360.0,1.41127267]
[1747929016132,0.28319683,111370.0,111360.0,1.38887267]
[1747929016384,0.27421784,111370.0,111360.0,1.37834625]
[1747929016575,0.31931784,111370.0,111360.0,1.36568447]
[1747929017236,0.31931784,111370.0,111360.0,0.72436447]
[1747929017442,0.31931784,111370.0,111360.0,1.36564447]
[1747929017647,0.31931784,111370.0,111360.0,1.36233067]
[1747929020089,0.29591784,111370.0,111360.0,1.54192837]
[1747929020303,0.27421784,111370.0,111360.0,0.72105067]
[1747929020457,0.29771784,111370.0,111360.0,1.36189067]
[1747929020641,0.32151784,111370.0,111360.0,1.36189067]
[1747929023818,0.32151784,111370.0,111360.0,1.02852]
[1747929024644,0.32151784,111370.0,111320.0,0.45947536]
[1747929024645,0.19761013,111330.0,111320.0,0.45947536]
[1747929024850,0.19761013,111330.0,111320.0,1.05451536]
[1747929025097,0.28715569,111330.0,111320.0,1.05451536]
[1747929025882,0.28724635,111330.0,111320.0,0.76224]
[1747929026089,0.30834635,111330.0,111320.0,1.0314]
[1747929026290,0.33074635,111330.0,111320.0,1.0314]
[1747929026498,0.33074635,111330.0,111320.0,1.0354]
[1747929026631,0.33074635,111330.0,111320.0,1.0314]
[1747929027041,0.33074635,111330.0,111320.0,1.0364]
[1747929027605,0.33074635,111330.0,111320.0,0.76524]
[1747929027787,0.33074635,111330.0,111320.0,1.0314]
[1747929027965,0.17967837,111310.0,111290.0,0.63033787]
[1747929028169,0.18248589,111310.0,111300.0,0.37168]
[1747929028378,0.18248589,111310.0,111300.0,0.39430678]
[1747929028827,0.18248589,111310.0,111300.0,0.44430678]
[1747929028998,0.27203145,111310.0,111300.0,0.44430678]
[1747929029227,0.26922393,111310.0,111300.0,0.71350678]
[1747929029994,0.26922393,111310.0,111300.0,0.71550678]
[1747929030397,0.26922393,111310.0,111300.0,0.07462678]
[1747929030713,0.26922393,111310.0,111300.0,0.71554678]
[1747929030912,0.60922393,111310.0,111300.0,0.42372]
[1747929031111,0.75037131,111310.0,111300.0,0.37372]
[1747929031423,0.67561907,111310.0,111300.0,0.003]
[1747929032323,0.70015992,111310.0,111300.0,0.003]
[1747929032540,0.24308115,111290.0,111280.0,0.002]
[1747929032740,0.33258671,111290.0,111280.0,0.002]
[1747929032957,0.69712756,111290.0,111280.0,0.002]
[1747929033165,1.05071565,111290.0,111280.0,0.002]
[1747929033377,0.76928089,111290.0,111280.0,0.002]
[1747929033836,0.76928089,111290.0,111280.0,0.00215162]
[1747929034062,0.80326483,111290.0,111280.0,0.00215162]
[1747929034276,0.85614014,111290.0,111280.0,0.00215162]
[1747929034487,0.80526483,111290.0,111280.0,0.00215162]
[1747929034699,0.94686671,111290.0,111280.0,0.00215162]
[1747929034926,0.94686671,111290.0,111280.0,0.00219162]
[1747929036717,0.67758671,111290.0,111280.0,0.00219162]
[1747929036930,0.67758671,111290.0,111280.0,0.64331162]
[1747929036931,0.29218671,111290.0,111280.0,0.64331162]
[1747929037141,0.29218671,111290.0,111280.0,0.84101086]
[1747929037349,0.29218704,111290.0,111280.0,0.66621162]
[1747929037527,0.29218704,111290.0,111280.0,0.64331162]
[1747929039630,0.29218704,111290.0,111280.0,0.64339162]
[1747929042288,0.29018704,111290.0,111280.0,0.64339162]
[1747929043240,0.17972681,111280.0,111260.0,0.25301951]
[1747929043378,0.19771636,111270.0,111260.0,0.26251297]
[1747929043583,0.1977166,111270.0,111260.0,1.75375763]
[1747929043789,0.18872994,111270.0,111260.0,1.57400165]
[1747929044018,0.18872994,111270.0,111260.0,0.41872583]
[1747929044229,0.2782755,111270.0,111260.0,0.37442583]
[1747929044432,0.2782755,111270.0,111260.0,0.64374583]
[1747929044648,0.2782755,111270.0,111260.0,0.64474583]
[1747929045520,0.2782755,111270.0,111260.0,0.27282583]
[1747929045923,0.3001755,111270.0,111260.0,0.27382583]
[1747929046301,0.3001755,111270.0,111260.0,0.27282583]
[1747929046569,0.3001755,111270.0,111260.0,0.00350583]
[1747929046780,0.35016573,111270.0,111260.0,0.27186583]
[1747929046989,0.3021755,111270.0,111260.0,0.27186583]
[1747929047192,0.3041755,111270.0,111260.0,0.27186583]
[1747929047852,0.2822755,111270.0,111260.0,0.00250583]
[1747929047853,0.2822755,111270.0,111260.0,0.64378583]
[1747929049429,0.2822755,111270.0,111260.0,0.37442583]
[1747929049647,0.2822755,111270.0,111260.0,0.64378583]
[1747929050673,0.3048755,111270.0,111260.0,0.64382583]
[1747929051876,0.3048755,111270.0,111260.0,0.00254583]
[1747929052268,0.7846906,111270.0,111260.0,0.00254583]
[1747929052642,1.4753906,111270.0,111260.0,0.00254583]
[1747929053053,1.1353906,111270.0,111260.0,0.00254583]
[1747929054146,1.08872883,111270.0,111260.0,0.00254583]
[1747929054962,1.10245201,111270.0,111260.0,0.00254583]
[1747929055590,1.10045201,111270.0,111260.0,0.00254583]
[1747929056114,0.59572271,111260.0,111250.0,0.0001]
[1747929056329,1.44410895,111260.0,111250.0,0.00025168]
[1747929056788,1.09052086,111260.0,111250.0,0.00025168]
[1747929057827,1.02238018,111260.0,111250.0,0.00025168]
[1747929058032,1.03094864,111260.0,111250.0,0.00025168]
[1747929060315,1.03394864,111260.0,111250.0,0.00025168]
[1747929060522,0.98954864,111260.0,111250.0,0.00025168]
[1747929061693,0.98098018,111260.0,111250.0,0.26969168]
[1747929062235,0.98098018,111260.0,111250.0,0.27802699]
[1747929062802,0.98098018,111260.0,111250.0,0.26969168]
[1747929063871,0.98098018,111260.0,111250.0,0.00025168]
[1747929064118,0.98098018,111260.0,111250.0,0.26969168]
[1747929064903,0.98098018,111260.0,111250.0,0.27802611]
[1747929065682,0.98098018,111260.0,111250.0,0.26969168]
[1747929065885,0.98098018,111260.0,111250.0,0.00025168]
[1747929066085,0.98098018,111260.0,111250.0,0.26969168]
[1747929069865,0.98098018,111260.0,111250.0,0.26693312]
[1747929069866,0.10153278,111260.0,111250.0,0.26693312]
[1747929070071,0.20972152,111260.0,111250.0,0.89007649]
[1747929070309,0.20972209,111260.0,111250.0,0.89906501]
[1747929070471,0.20972209,111260.0,111250.0,0.89007649]
[1747929070660,0.20073462,111260.0,111250.0,0.89007649]
[1747929070868,0.19174691,111260.0,111250.0,0.88108781]
[1747929071128,0.18874691,111260.0,111250.0,0.88108781]
[1747929071330,0.18874691,111260.0,111250.0,0.70131253]
[1747929071555,0.19274691,111260.0,111250.0,0.70131253]
[1747929072601,0.19274691,111260.0,111250.0,0.68677168]
[1747929072778,0.19274691,111260.0,111250.0,0.66407168]
[1747929072779,0.28229247,111260.0,111250.0,0.66407168]
[1747929073243,0.28229247,111260.0,111250.0,0.02295168]
[1747929073391,0.28229247,111260.0,111250.0,0.68747168]
[1747929073592,0.28229247,111260.0,111250.0,0.04635168]
[1747929073795,0.19274691,111260.0,111250.0,0.702542]
[1747929073997,0.19274691,111260.0,111250.0,0.70201253]
[1747929077356,0.19274691,111260.0,111250.0,0.43257253]
[1747929077562,0.19274691,111260.0,111250.0,0.70201253]
[1747929078536,0.28229247,111260.0,111250.0,0.00025168]
[1747929078739,0.28229247,111260.0,111250.0,0.64133168]
[1747929079391,0.35721135,111260.0,111250.0,0.00025168]
[1747929079594,0.37951135,111260.0,111250.0,0.37189168]
[1747929079799,0.37951135,111260.0,111250.0,0.64129168]
[1747929080004,0.32609247,111260.0,111250.0,0.64129168]
[1747929082385,0.32609247,111260.0,111250.0,0.00025168]
[1747929082590,0.32609247,111260.0,111250.0,0.26965168]
[1747929082827,0.32609247,111260.0,111250.0,0.00025168]
[1747929083451,0.32609247,111260.0,111250.0,0.00859645]
[1747929084157,0.41561398,111260.0,111250.0,0.00859645]
[1747929084526,0.41561398,111260.0,111250.0,0.00025168]
[1747929085288,0.76920207,111260.0,111250.0,0.00025168]
[1747929085536,0.41561398,111260.0,111250.0,0.00025168]
[1747929085840,0.32609247,111260.0,111250.0,0.00025168]
[1747929086010,0.33467556,111260.0,111250.0,0.00025168]
[1747929087436,0.32609247,111260.0,111250.0,0.00025168]
[1747929087833,0.33609247,111260.0,111250.0,0.00025168]
[1747929088037,1.02968056,111260.0,111250.0,0.00025168]
[1747929088213,1.12920207,111260.0,111250.0,0.00025168]
[1747929089023,1.12720207,111260.0,111250.0,0.00025168]
[1747929089321,1.11920207,111260.0,111250.0,0.00025168]
[1747929089528,1.51045177,111260.0,111250.0,0.00025168]
[1747929089941,1.51445177,111260.0,111250.0,0.00125168]
[1747929093867,1.68441026,111260.0,111250.0,0.00125168]
[1747929094069,1.69441026,111260.0,111250.0,0.00125168]
[1747929094486,1.68366365,111260.0,111250.0,0.00125168]
[1747929095135,1.74564758,111260.0,111250.0,0.00125168]
[1747929095916,0.53876388,111250.0,111240.0,0.002]
[1747929096118,0.67270944,111250.0,111240.0,0.00205055]
[1747929098294,0.67470944,111250.0,111240.0,0.00205055]
[1747929099270,0.67770944,111250.0,111240.0,0.00205055]
[1747929100857,0.72108588,111250.0,111240.0,0.00205055]
[1747929101258,0.67770944,111250.0,111240.0,0.00205055]
[1747929103166,0.62330944,111250.0,111240.0,0.00205055]
[1747929104201,0.64640944,111250.0,111240.0,0.00205055]
[1747929104615,0.18883185,111210.0,111200.0,0.45466341]
[1747929104828,0.18883185,111210.0,111200.0,1.09623398]
[1747929105029,0.18883185,111210.0,111200.0,0.98157057]
[1747929105235,0.27837741,111210.0,111200.0,0.98157057]
[1747929105652,0.27837741,111210.0,111200.0,0.72038873]
[1747929105851,0.27837741,111210.0,111200.0,0.98990873]
[1747929106059,0.27837741,111210.0,111200.0,0.99390873]
[1747929107288,0.27937741,111210.0,111200.0,0.99690873]
[1747929107787,0.27937741,111210.0,111200.0,1.04150873]
[1747929110985,0.27937741,111210.0,111200.0,0.67880873]
[1747929111188,0.27937741,111210.0,111200.0,0.65690873]
[1747929111816,0.27937741,111210.0,111200.0,0.01538873]
[1747929111817,0.37901433,111210.0,111200.0,0.01538873]
[1747929112029,0.37901433,111210.0,111200.0,0.01138873]
[1747929112464,0.37901433,111210.0,111200.0,0.01538873]
[1747929112881,0.37901433,111210.0,111200.0,0.00705057]
[1747929113337,0.37901433,111210.0,111200.0,0.00305057]
[1747929113338,0.32587741,111210.0,111200.0,0.00305057]
[1747929113759,0.32687741,111210.0,111200.0,5.057e-05]
[1747929113968,0.32687741,111210.0,111200.0,0.00105057]
[1747929114584,0.32687741,111210.0,111200.0,5.057e-05]
[1747929114968,0.32887741,111210.0,111200.0,5.057e-05]
[1747929115575,0.41839892,111210.0,111200.0,5.057e-05]
[1747929115774,0.32887741,111210.0,111200.0,5.057e-05]
[1747929116002,0.02698673,111160.0,111150.0,0.39952241]
[1747929116206,0.02698504,111170.0,111160.0,0.38152823]
[1747929116408,0.19789487,111170.0,111160.0,0.54345772]
[1747929116619,0.1888998,111170.0,111160.0,0.35454085]
[1747929117300,0.1888998,111170.0,111160.0,0.80402168]
[1747929117301,0.17990465,111170.0,111160.0,0.80402168]
[1747929117516,0.17991609,111180.0,111170.0,0.1944455]
[1747929117731,0.19787722,111180.0,111170.0,0.35454085]
[1747929118161,0.19787722,111180.0,111170.0,0.54344065]
[1747929118390,0.19787722,111180.0,111170.0,0.35454085]
[1747929118597,0.18888288,111180.0,111170.0,0.35454085]
[1747929118800,0.18888288,111180.0,111170.0,0.35654085]
[1747929119005,0.18888288,111180.0,111170.0,0.39654085]
[1747929119417,0.18888288,111180.0,111170.0,0.4328449]
[1747929119627,0.18888288,111180.0,111170.0,0.6217447]
[1747929119811,0.18888288,111180.0,111170.0,0.6237447]
[1747929120209,0.18888288,111180.0,111170.0,0.63273968]
[1747929120430,0.18888288,111180.0,111170.0,0.4348449]
[1747929120914,0.17988846,111180.0,111170.0,0.44318886]
[1747929121794,0.17988846,111180.0,111170.0,0.83134287]
[1747929125770,0.17988846,111180.0,111170.0,1.00290955]
[1747929126351,0.17988846,111180.0,111170.0,0.49134285]
[1747929127866,0.17988846,111180.0,111170.0,0.6712475]
[1747929128065,0.17988846,111180.0,111170.0,0.68024273]
[1747929128274,0.17988846,111180.0,111170.0,0.68024352]
[1747929128503,0.01798827,111180.0,111170.0,0.69823357]
[1747929128726,0.01798778,111180.0,111170.0,0.71622305]
[1747929128926,0.02698171,111180.0,111170.0,0.71622305]
[1747929129134,0.03597597,111180.0,111170.0,0.71622305]
[1747929129293,0.03597597,111180.0,111170.0,0.54426673]
[1747929129495,0.02698171,111180.0,111170.0,0.54426673]
[1747929129706,0.01798762,111180.0,111170.0,0.54426673]
[1747929130120,0.002,111190.0,111180.0,0.20687074]
[1747929130336,0.002,111210.0,111200.0,0.20683354]
[1747929130575,0.002,111210.0,111200.0,4.99875754]
[1747929130709,0.20877751,111230.0,111220.0,0.17982377]
[1747929131100,0.19782336,111210.0,111200.0,0.24784099]
[1747929131291,0.00899143,111210.0,111200.0,3.51723407]
[1747929131535,0.27135375,111230.0,111210.0,0.01454085]
[1747929131720,0.20877875,111230.0,111220.0,0.46789666]
[1747929131933,0.19978878,111230.0,111220.0,0.47635675]
[1747929132138,0.19978778,111230.0,111220.0,0.47635675]
[1747929132711,0.19978778,111230.0,111220.0,0.45837487]
[1747929132917,0.19079781,111230.0,111220.0,0.45837487]
[1747929133143,0.005,111230.0,111220.0,0.48634753]
[1747929133463,0.03164237,111240.0,111230.0,0.2333186]
[1747929133697,0.05860986,111240.0,111230.0,0.6050786]
[1747929133877,0.04962045,111240.0,111230.0,0.6050786]
[1747929134085,0.05860977,111240.0,111230.0,0.6050786]
[1747929134311,0.05860977,111240.0,111230.0,0.9450786]
[1747929134514,0.01797808,111240.0,111230.0,0.9450786]
[1747929134844,0.0269674,111240.0,111230.0,0.9450786]
[1747929135051,0.03595681,111240.0,111230.0,0.9450786]
[1747929135249,0.1997524,111250.0,111240.0,0.22130002]
[1747929135473,0.1997524,111250.0,111240.0,0.48187102]
[1747929135474,0.20874067,111250.0,111240.0,0.48187102]
[1747929135899,0.20874108,111250.0,111240.0,0.49086051]
[1747929136631,0.20974108,111250.0,111240.0,0.49086051]
[1747929136839,0.20075256,111250.0,111240.0,0.49086051]
[1747929137042,0.20075256,111250.0,111240.0,0.48187119]
[1747929137212,0.19176396,111250.0,111240.0,0.47288186]
[1747929137423,0.19276396,111250.0,111240.0,0.48187135]
[1747929138032,0.2017524,111250.0,111240.0,0.49984992]
[1747929138381,0.21074116,111250.0,111240.0,0.49086076]
[1747929138563,0.21074116,111250.0,111240.0,0.49985]
[1747929138994,0.01298819,111250.0,111240.0,0.508839]
[1747929139204,0.03096498,111250.0,111240.0,0.508839]
[1747929139415,0.03995358,111250.0,111240.0,0.508839]
[1747929140055,0.22871762,111250.0,111240.0,0.50883916]
[1747929140259,0.21972943,111250.0,111240.0,0.50883916]
[1747929140608,0.21074116,111250.0,111240.0,0.22130076]
[1747929140812,0.21074116,111250.0,111240.0,0.49977008]
[1747929141057,0.21074116,111250.0,111240.0,0.50875924]
[1747929142484,0.23523961,111270.0,111260.0,0.19773478]
[1747929142724,0.20672233,111260.0,111250.0,0.20329031]
[1747929142929,0.19773478,111260.0,111250.0,1.04350085]
[1747929143559,0.19773478,111260.0,111250.0,5.74564013]
[1747929143729,0.19773478,111260.0,111250.0,5.56586485]
[1747929144196,0.19773478,111260.0,111250.0,5.74564013]
[1747929144405,0.19773478,111260.0,111250.0,5.56586485]
[1747929144615,0.19773478,111260.0,111250.0,3.99444085]
[1747929144820,0.24333478,111260.0,111250.0,1.02896]
[1747929148712,0.05458747,111260.0,111250.0,1.25024144]
[1747929148912,0.002,111270.0,111260.0,0.56126286]
[1747929149129,0.06727082,111290.0,111270.0,0.20668835]
[1747929149346,0.02946038,111290.0,111280.0,5.3845097]
[1747929149572,0.02047476,111290.0,111280.0,5.3845097]
[1747929149786,0.02945988,111290.0,111280.0,5.3845097]
[1747929149998,0.03844525,111290.0,111280.0,5.3845097]
[1747929150201,0.01148972,111290.0,111280.0,5.3845097]
[1747929150366,0.02047476,111290.0,111280.0,5.3845097]
[1747929150572,0.02945997,111290.0,111280.0,5.3845097]
[1747929150773,0.02047476,111290.0,111280.0,5.3845097]
[1747929150973,0.02945972,111290.0,111280.0,5.3845097]
[1747929151177,0.21815567,111290.0,111280.0,5.36653792]
[1747929151362,0.0114898,111290.0,111280.0,5.3845101]
[1747929151558,0.02946029,111290.0,111280.0,5.39349587]
[1747929151760,0.00250492,111290.0,111280.0,5.73349587]
[1747929151961,0.00250492,111290.0,111280.0,5.74819587]
[1747929152339,0.00250492,111290.0,111280.0,5.79819587]
[1747929152544,0.01148972,111290.0,111280.0,5.79819587]
[1747929152979,0.02047476,111290.0,111280.0,5.79549587]
[1747929153189,0.02047468,111290.0,111280.0,5.61373187]
[1747929153406,0.02047468,111290.0,111280.0,5.51213187]
[1747929153607,0.02047468,111290.0,111280.0,5.09353187]
[1747929153816,0.01148972,111290.0,111280.0,5.09353187]
[1747929153989,0.02047468,111290.0,111280.0,5.09353187]
[1747929154375,0.00250492,111290.0,111280.0,4.59723187]
[1747929154577,0.0114898,111290.0,111280.0,3.63523187]
[1747929154814,0.02047484,111290.0,111280.0,3.63523187]
[1747929155023,0.02047484,111290.0,111280.0,2.99431187]
[1747929155245,0.02047484,111290.0,111280.0,3.63503187]
[1747929156981,0.00250492,111290.0,111280.0,3.72457743]
[1747929157636,0.22788078,111310.0,111300.0,0.19766355]
[1747929157637,0.06616742,111310.0,111300.0,0.19766355]
[1747929157835,0.2228972,111310.0,111300.0,0.84579915]
[1747929158048,0.2228972,111310.0,111300.0,0.65712]
[1747929158405,0.2228972,111310.0,111300.0,0.84579915]
[1747929158607,0.23188111,111310.0,111300.0,0.87830888]
[1747929158831,0.23288111,111310.0,111300.0,0.86932456]
[1747929159440,0.22389752,111310.0,111300.0,0.67166085]
[1747929160594,0.24519752,111310.0,111300.0,0.67166085]
[1747929160786,0.24619752,111310.0,111300.0,0.7074277]
[1747929161195,0.24619752,111310.0,111300.0,0.88712221]
[1747929161635,0.24619752,111310.0,111300.0,0.92305981]
[1747929161636,0.0542021,111310.0,111300.0,0.92305981]
[1747929161805,0.0311021,111310.0,111300.0,5.44546381]
[1747929162522,0.04008593,111310.0,111300.0,5.44546381]
[1747929162722,0.03908593,111310.0,111300.0,5.44546381]
[1747929162927,0.22774821,111310.0,111300.0,5.43647965]
[1747929163124,0.22309752,111310.0,111300.0,1.42284685]
[1747929163330,0.22309752,111310.0,111300.0,1.2015677]
[1747929163531,0.24569752,111310.0,111300.0,1.03204685]
[1747929163732,0.23671369,111310.0,111300.0,0.4381077]
[1747929163945,0.23671369,111310.0,111300.0,1.26734693]
[1747929164174,0.23571369,111310.0,111300.0,1.25836221]
[1747929165222,0.23571369,111310.0,111300.0,1.0786677]
[1747929166978,0.32525925,111310.0,111300.0,0.79484685]
[1747929167203,0.32525925,111310.0,111300.0,1.06412685]
[1747929170475,0.32525925,111310.0,111300.0,0.75908]
[1747929170688,0.32525925,111310.0,111300.0,1.02836]
[1747929171919,0.32625925,111310.0,111300.0,1.02836]
[1747929172543,0.32725925,111310.0,111300.0,1.02836]
[1747929175432,0.32725925,111310.0,111300.0,1.02812]
[1747929176787,0.32725925,111310.0,111300.0,0.3878]
[1747929176991,0.32725925,111310.0,111300.0,1.02812]
[1747929180741,0.20668444,111280.0,111270.0,0.23023074]
[1747929181115,0.18871298,111280.0,111270.0,0.38558085]
[1747929181320,0.17972681,111280.0,111270.0,0.56532381]
[1747929181502,0.17972681,111280.0,111270.0,0.57431087]
[1747929181936,0.22552681,111280.0,111270.0,0.75884]
[1747929182135,0.31507237,111280.0,111270.0,1.0282]
[1747929182342,0.31507237,111280.0,111270.0,1.0342]
[1747929183579,0.31507237,111280.0,111270.0,1.07134074]
[1747929184726,0.31507237,111280.0,111270.0,1.0342]
[1747929185387,0.03138504,111290.0,111270.0,1.22292954]
[1747929185618,0.13890069,111290.0,111280.0,0.22175364]
[1747929185832,0.21565189,111290.0,111280.0,0.21223993]
[1747929186013,0.02695505,111290.0,111280.0,4.7435897]
[1747929186258,0.21565116,111290.0,111280.0,4.7435897]
[1747929186687,0.21565189,111290.0,111280.0,2.82503993]
[1747929187317,0.21665189,111290.0,111280.0,2.69553993]
[1747929187747,0.20666636,111290.0,111280.0,2.70452578]
[1747929187962,0.22672978,111310.0,111280.0,2.67756766]
[1747929188198,0.01796847,111300.0,111290.0,4.99544706]
[1747929188411,0.01796847,111300.0,111290.0,5.37498568]
[1747929188412,0.03593727,111300.0,111290.0,5.37498568]
[1747929188624,0.04492191,111300.0,111290.0,5.37498568]
[1747929189056,0.21563243,111300.0,111290.0,5.36600096]
[1747929189296,0.20664819,111300.0,111290.0,5.39295683]
[1747929190018,0.00898424,111300.0,111290.0,5.39295683]
[1747929190222,0.21776446,111310.0,111300.0,0.20664787]
[1747929190408,0.20878111,111310.0,111300.0,4.71104315]
[1747929190609,0.22229752,111310.0,111300.0,1.41117915]
[1747929191149,0.19979752,111310.0,111300.0,1.43470456]
[1747929191390,0.22129752,111310.0,111300.0,1.43470456]
[1747929191785,0.22129752,111310.0,111300.0,1.23704085]
[1747929191985,0.24499752,111310.0,111300.0,1.50636085]
[1747929192765,0.24499752,111310.0,111300.0,1.2506671]
[1747929193169,0.24599752,111310.0,111300.0,1.23426085]
[1747929193373,0.24599752,111310.0,111300.0,0.98456085]
[1747929193792,0.24699752,111310.0,111300.0,1.17324]
[1747929194826,0.01313476,111310.0,111300.0,1.19120856]
[1747929195028,0.00415141,111310.0,111300.0,1.19120856]
[1747929195432,0.00415141,111310.0,111300.0,1.53120856]
[1747929195716,0.02211819,111310.0,111300.0,1.54260856]
[1747929196143,0.00415141,111310.0,111300.0,1.54260856]
[1747929196368,0.03010162,111310.0,111300.0,1.54260856]
[1747929196990,0.02111803,111310.0,111300.0,1.54260856]
[1747929197185,0.01213476,111310.0,111300.0,1.54260856]
[1747929197413,0.03010202,111310.0,111300.0,1.54260856]
[1747929197782,0.02011827,111310.0,111300.0,1.54260856]
[1747929198953,0.01113476,111310.0,111300.0,1.54260856]
[1747929199153,0.02011827,111310.0,111300.0,1.54260856]
[1747929199423,0.0111346,111310.0,111300.0,1.54260856]
[1747929199640,0.00215141,111310.0,111300.0,1.54260856]
[1747929199852,0.01113468,111310.0,111300.0,1.54260856]
[1747929200057,0.00215141,111310.0,111300.0,1.93032856]
[1747929200473,0.02011803,111310.0,111300.0,1.93032856]
[1747929200706,0.03808529,111310.0,111300.0,1.93032856]
[1747929200894,0.03808529,111310.0,111300.0,1.91892856]
[1747929201105,0.02910154,111310.0,111300.0,1.91892856]
[1747929201304,0.21776414,111310.0,111300.0,1.6406244]
[1747929201500,0.02910194,111310.0,111300.0,1.91884864]
[1747929201708,0.02011803,111310.0,111300.0,1.9278328]
[1747929201919,0.00215141,111310.0,111300.0,1.9278328]
[1747929202124,0.00215141,111310.0,111300.0,1.9410328]
[1747929202329,0.00215141,111310.0,111300.0,1.9392328]
[1747929202525,0.0111346,111310.0,111300.0,1.9278328]
[1747929202943,0.02011795,111310.0,111300.0,1.9278328]
[1747929203710,0.2442972,111310.0,111300.0,1.44296085]
[1747929203922,0.2442972,111310.0,111300.0,2.06822]
[1747929204585,0.2442972,111310.0,111300.0,1.48422]
[1747929204997,0.2442972,111310.0,111300.0,1.48722]
[1747929206152,0.2442972,111310.0,111300.0,0.50742]
[1747929206366,0.33384276,111310.0,111300.0,1.37052]
[1747929208309,0.2442972,111310.0,111300.0,1.55919907]
[1747929208528,0.25328111,111310.0,111300.0,1.55919907]
[1747929209172,0.24429752,111310.0,111300.0,1.55919907]
[1747929209402,0.23531369,111310.0,111300.0,1.55919907]
[1747929210403,0.22632978,111310.0,111300.0,1.37052]
[1747929216977,0.22632978,111310.0,111300.0,1.10128]
[1747929217191,0.22632978,111310.0,111300.0,1.37052]
[1747929220093,0.22632978,111310.0,111300.0,1.02752]
[1747929220483,0.22632978,111310.0,111290.0,0.21564822]
[1747929220484,0.22049891,111280.0,111260.0,0.40465609]
[1747929220684,0.02695982,111270.0,111260.0,0.4762416]
[1747929220895,0.02695974,111270.0,111260.0,5.7704726]
[1747929221097,0.02695974,111270.0,111260.0,3.77936601]
[1747929221303,0.20670374,111270.0,111260.0,4.05430601]
[1747929221509,0.23010374,111270.0,111260.0,3.63038159]
[1747929221711,0.23010374,111270.0,111260.0,3.64492244]
[1747929221979,0.23010374,111270.0,111260.0,3.65441491]
[1747929222172,0.20670374,111270.0,111260.0,3.66340238]
[1747929222555,0.20770374,111270.0,111260.0,4.00840238]
[1747929222780,0.001,111270.0,111260.0,4.10934738]
[1747929222981,0.01897138,111280.0,111270.0,0.22124427]
[1747929223181,0.02695739,111280.0,111270.0,4.48791527]
[1747929223365,0.22465663,111280.0,111270.0,4.48791527]
[1747929223751,0.22465663,111280.0,111270.0,5.46779527]
[1747929223945,0.04492982,111280.0,111270.0,5.46779527]
[1747929224153,0.22465663,111280.0,111270.0,5.46779527]
[1747929224396,0.22465663,111280.0,111270.0,5.46979527]
[1747929224801,0.22465663,111280.0,111270.0,5.12979527]
[1747929225009,0.22465736,111280.0,111270.0,5.12979527]
[1747929225386,0.22465736,111280.0,111270.0,5.12080869]
[1747929225603,0.22465736,111280.0,111270.0,5.12979543]
[1747929225778,0.22465736,111280.0,111270.0,5.13878209]
[1747929226007,0.22465736,111280.0,111270.0,5.14178209]
[1747929226204,0.03594421,111280.0,111270.0,5.15076867]
[1747929226563,0.21567102,111280.0,111270.0,5.49076867]
[1747929226817,0.22465736,111280.0,111270.0,5.49076867]
[1747929227407,0.05288504,111290.0,111280.0,0.21224009]
[1747929227579,0.25955172,111290.0,111280.0,4.47891109]
[1747929228032,0.25955172,111290.0,111280.0,4.47891117]
[1747929228238,0.25955172,111290.0,111280.0,4.48789718]
[1747929228441,0.0236,111300.0,111290.0,0.56120713]
[1747929228594,0.03258408,111300.0,111290.0,1.20108713]
[1747929228793,0.23923195,111300.0,111290.0,1.19210217]
[1747929229026,0.23024787,111300.0,111290.0,1.18311696]
[1747929229199,0.22126363,111300.0,111290.0,1.18311696]
[1747929229407,0.22126363,111300.0,111290.0,5.46775854]
[1747929229831,0.22126363,111300.0,111290.0,3.88363151]
[1747929230035,0.24366363,111300.0,111290.0,3.22610249]
[1747929230238,0.24366363,111300.0,111290.0,3.23508786]
[1747929230466,0.24366363,111300.0,111290.0,3.24407315]
[1747929230665,0.24366363,111300.0,111290.0,3.25305836]
[1747929231361,0.24366363,111300.0,111290.0,3.25305795]
[1747929232405,0.24366363,111300.0,111290.0,3.25305754]
[1747929232607,0.25264835,111300.0,111290.0,3.23508738]
[1747929232833,0.25264835,111300.0,111290.0,2.83108738]
[1747929233237,0.25264835,111300.0,111290.0,2.8400725]
[1747929234654,0.25264835,111300.0,111290.0,2.08318738]
[1747929234853,0.25264835,111300.0,111290.0,2.03773151]
[1747929235057,0.25264835,111300.0,111290.0,2.43443696]
[1747929235298,0.24366387,111300.0,111290.0,2.42545151]
[1747929235504,0.24366387,111300.0,111290.0,2.37613704]
[1747929235709,0.23467923,111300.0,111290.0,2.18744085]
[1747929235924,0.23467923,111300.0,111290.0,5.83750796]
[1747929236134,0.23467923,111300.0,111290.0,5.78243696]
[1747929236327,0.23467923,111300.0,111290.0,5.41247696]
[1747929236581,0.23467923,111300.0,111290.0,4.98519151]
[1747929236819,0.22569451,111300.0,111290.0,3.76378085]
[1747929237960,0.23467915,111300.0,111290.0,3.96146217]
[1747929238186,0.23467915,111300.0,111290.0,3.96146225]
[1747929238400,0.06396904,111300.0,111290.0,3.97943242]
[1747929238619,0.24366355,111300.0,111290.0,3.97044746]
[1747929240269,0.22569451,111300.0,111290.0,1.99578085]
[1747929240482,0.22569451,111300.0,111290.0,2.18447696]
[1747929240678,0.22569451,111300.0,111290.0,2.20244762]
[1747929242599,0.046,111300.0,111290.0,2.21143283]
[1747929242826,0.25264787,111300.0,111290.0,2.20176762]
[1747929243049,0.26163259,111300.0,111290.0,2.21075283]
[1747929244651,0.25264827,111300.0,111290.0,2.19278233]
[1747929244780,0.25264827,111300.0,111290.0,2.20176762]
[1747929245475,0.06396856,111300.0,111290.0,2.21075283]
[1747929245696,0.25264763,111300.0,111290.0,2.21075283]
[1747929245909,0.07295312,111300.0,111290.0,2.21973779]
[1747929246151,0.03258399,111300.0,111290.0,2.21973779]
[1747929246320,0.06676726,111310.0,111300.0,0.56118856]